[Event "Chess Festival Groningen 2023 | A"]
[Site "Groningen, Netherlands"]
[Date "2023.12.21"]
[Round "1.7"]
[White "Krasenkow, Michal"]
[Black "Aashman Gupta"]
[Result "1-0"]
[TimeControl "90min/40moves + 30min + 30sec/move"]
[WhiteElo "2532"]
[BlackElo "2235"]

1. d4 {[%clk 01:30:43]} {[%emt 00:00:13]} d5 {[%clk 01:27:20]} {[%emt
00:03:07]} 2. c4 {[%clk 01:31:05]} {[%emt 00:00:37]} e6 {[%clk 01:27:39]} 3.
Nc3 {[%clk 01:31:31]} c6 {[%clk 01:27:12]} {[%emt 00:00:43]} 4. e3 {[%clk
01:31:39]} {[%emt 00:00:24]} Nf6 {[%clk 01:26:36]} {[%emt 00:01:40]} 5. Nf3
{[%clk 01:31:39]} {[%emt 00:00:09]} Nbd7 {[%clk 01:26:54]} 6. Bd3 {[%clk
01:29:03]} {[%emt 00:03:04]} dxc4 {[%clk 01:26:20]} {[%emt 00:01:03]} 7. Bxc4
{[%clk 01:29:15]} {[%emt 00:00:46]} b5 {[%clk 01:26:40]} 8. Bd3 {[%clk
01:29:44]} Bb7 {[%clk 01:25:39]} {[%emt 00:01:51]} 9. O-O {[%clk 01:30:01]} a6
{[%clk 01:24:05]} {[%emt 00:02:08]} 10. a4 {[%clk 01:30:14]} {[%emt 00:00:07]}
b4 {[%clk 01:19:05]} {[%emt 00:05:12]} 11. Ne4 {[%clk 01:30:26]} {[%emt
00:00:18]} c5 {[%clk 01:12:39]} {[%emt 00:06:56]} 12. Ned2 {[%clk 01:21:16]}
{[%emt 00:09:42]} cxd4 {[%clk 00:59:04]} {[%emt 00:14:09]} 13. exd4 {[%clk
01:21:32]} {[%emt 00:00:23]} Bd6 {[%clk 00:54:46]} {[%emt 00:04:34]} 14. Nc4
{[%clk 01:21:34]} {[%emt 00:00:26]} Bc7 {[%clk 00:54:49]} {[%emt 00:00:49]} 15.
a5 {[%clk 01:21:53]} O-O {[%clk 00:53:23]} {[%emt 00:01:46]} 16. Qe2 {[%clk
01:17:05]} {[%emt 00:05:20]} h6 {[%clk 00:44:23]} {[%emt 00:09:27]} 17. Bd2
{[%clk 01:16:21]} {[%emt 00:01:17]} Nd5 {[%clk 00:39:24]} {[%emt 00:05:25]} 18.
Nfe5 {[%clk 01:02:00]} {[%emt 00:14:52]} Nxe5 {[%clk 00:25:20]} {[%emt
00:14:33]} 19. dxe5 {[%clk 01:02:02]} {[%emt 00:00:29]} Qh4 {[%clk 00:21:15]}
{[%emt 00:04:33]} 20. f4 {[%clk 00:59:12]} {[%emt 00:03:52]} Rfd8 {[%clk
00:17:28]} {[%emt 00:03:45]} 21. Rf3 {[%clk 00:54:39]} {[%emt 00:05:13]} Rab8
{[%clk 00:06:21]} {[%emt 00:11:28]} 22. Rh3 {[%clk 00:51:23]} {[%emt 00:03:46]}
Qe7 {[%clk 00:05:31]} {[%emt 00:01:18]} 23. f5 {[%clk 00:51:26]} {[%emt
00:00:31]} exf5 {[%clk 00:04:57]} {[%emt 00:01:09]} 24. Bxf5 {[%clk 00:47:31]}
{[%emt 00:04:18]} Qc5+ {[%clk 00:05:10]} {[%emt 00:00:47]} 25. Kh1 {[%clk
00:47:45]} Ne7 {[%clk 00:05:09]} {[%emt 00:00:17]} 26. Be3 {[%clk 00:44:55]}
{[%emt 00:03:25]} Qd5 {[%clk 00:04:13]} {[%emt 00:01:19]} 27. Bg4 {[%clk
00:43:00]} {[%emt 00:02:48]} Qd3 {[%clk 00:03:06]} {[%emt 00:01:16]} 28. Ba7
{[%clk 00:29:24]} {[%emt 00:14:27]} Qxe2 {[%clk 00:03:30]} 29. Bxe2 {[%clk
00:29:51]} Ra8 {[%clk 00:01:02]} {[%emt 00:02:45]} 30. Bb6 {[%clk 00:29:53]}
{[%emt 00:00:34]} Bxb6 {[%clk 00:00:47]} {[%emt 00:00:39]} 31. axb6 {[%clk
00:30:15]} {[%emt 00:00:47]} Ng6 {[%clk 00:00:35]} {[%emt 00:00:10]} 32. Bf3
{[%clk 00:27:34]} {[%emt 00:03:15]} Rab8 {[%clk 00:00:50]} {[%emt 00:00:37]} 33.
Bxb7 {[%clk 00:20:30]} {[%emt 00:07:02]} Rxb7 {[%clk 00:01:18]} {[%emt
00:00:34]} 34. Kg1 {[%clk 00:20:46]} {[%emt 00:00:09]} Rd4 {[%clk 00:00:58]}
{[%emt 00:00:23]} 35. b3 {[%clk 00:20:27]} {[%emt 00:00:49]} Rd5 {[%clk
00:00:32]} {[%emt 00:00:56]} 36. Re3 {[%clk 00:18:20]} {[%emt 00:02:36]} a5
{[%clk 00:00:51]} {[%emt 00:00:15]} 37. e6 {[%clk 00:18:28]} {[%emt 00:00:21]}
Kf8 {[%clk 00:00:32]} {[%emt 00:00:48]} 38. exf7 {[%clk 00:17:09]} {[%emt
00:01:47]} Kxf7 {[%clk 00:00:41]} {[%emt 00:00:21]} 39. Rf1+ {[%clk 00:12:52]}
{[%emt 00:05:08]} Kg8 {[%clk 00:01:10]} {[%emt 00:00:08]} 40. Re8+ {[%clk
00:12:02]} {[%emt 00:00:51]} Kh7 {[%clk 00:01:38]} {[%emt 00:00:49]} 41. Ra8
{[%clk 00:12:14]} Ne5 {[%clk 00:16:39]} {[%emt 00:15:04]} 42. Ra7 {[%clk
00:42:00]} {[%emt 00:00:43]} Rb8 {[%clk 00:14:45]} {[%emt 00:02:21]} 43. Nxe5
{[%clk 00:35:35]} {[%emt 00:06:55]} Rxe5 {[%clk 00:14:58]} {[%emt 00:00:45]} 44.
Rff7 {[%clk 00:35:58]} Rxb6 {[%clk 00:13:12]} {[%emt 00:01:56]} 45. Rxg7+
{[%clk 00:36:21]} {[%emt 00:00:31]} Kh8 {[%clk 00:13:40]} 46. Rgd7 {[%clk
00:27:02]} {[%emt 00:09:26]} Rbe6 {[%clk 00:07:14]} {[%emt 00:06:55]} 47. h3
{[%clk 00:24:16]} Kg8 {[%clk 00:07:14]} 48. Kh2 {[%clk 00:24:16]} Rf6 {[%clk
00:07:14]} 49. Rd8+ {[%clk 00:24:16]} Rf8 {[%clk 00:07:14]} 50. Rd6 {[%clk
00:24:16]} Rg5 {[%clk 00:07:14]} 51. g4 {[%clk 00:24:16]} h5 {[%clk 00:07:14]}
52. Kg3 {[%clk 00:24:16]} hxg4 {[%clk 00:07:14]} 53. hxg4 {[%clk 00:13:35]}
{[%emt 00:25:05]} Rf7 {[%clk 00:02:15]} {[%emt 00:00:21]} 54. Rd8+ {[%clk
00:11:46]} {[%emt 00:02:21]} Kg7 {[%clk 00:01:39]} {[%emt 00:01:06]} 55. Raa8
{[%clk 00:12:08]} {[%emt 00:00:10]} Rc5 {[%clk 00:01:03]} {[%emt 00:01:03]} 56.
Rg8+ {[%clk 00:06:31]} {[%emt 00:06:08]} Kf6 {[%clk 00:00:54]} {[%emt
00:00:39]} 57. Ra6+ {[%clk 00:06:13]} {[%emt 00:00:47]} Ke7 {[%clk 00:01:10]}
{[%emt 00:00:36]} 58. g5 {[%clk 00:06:27]} {[%emt 00:00:13]} Rff5 {[%clk
00:00:33]} {[%emt 00:00:47]} 59. Ra7+ {[%clk 00:02:50]} {[%emt 00:04:09]} Ke6
{[%clk 00:00:48]} {[%emt 00:00:17]} 60. Kg4 {[%clk 00:03:16]} {[%emt 00:00:05]}
Ke5 {[%clk 00:00:37]} {[%emt 00:00:37]} 61. Rd7 {[%clk 00:01:33]} {[%emt
00:02:14]} Ke6 {[%clk 00:01:05]} {[%emt 00:00:13]} 62. Rdd8 {[%clk 00:01:47]}
{[%emt 00:00:06]} Rfe5 {[%clk 00:00:32]} {[%emt 00:01:01]} 63. Kh5 {[%clk
00:01:48]} {[%emt 00:00:31]} Kf5 {[%clk 00:00:32]} {[%emt 00:00:28]} 64. Rd4
{[%clk 00:01:52]} {[%emt 00:00:27]} Re6 {[%clk 00:00:32]} {[%emt 00:00:47]} 65.
Rf8+ {[%clk 00:01:06]} {[%emt 00:01:21]} Ke5 {[%clk 00:01:01]} 66. Rd1 {[%clk
00:01:35]} Rc3 {[%clk 00:00:39]} {[%emt 00:00:33]} 67. Rf2 {[%clk 00:00:35]}
{[%emt 00:01:31]} Re3 {[%clk 00:00:33]} {[%emt 00:00:34]} 68. g6 {[%clk
00:00:50]} {[%emt 00:00:17]} Rh3 {[%clk 00:00:41]} {[%emt 00:00:19]} 69. Kg4
{[%clk 00:01:14]} {[%emt 00:00:08]} Re3 {[%clk 00:00:32]} {[%emt 00:00:38]} 70.
Rf5+ {[%clk 00:01:26]} {[%emt 00:00:18]} Ke4 {[%clk 00:01:02]} 71. Rg5 {[%clk
00:01:39]} {[%emt 00:00:39]} Re2 {[%clk 00:00:58]} {[%emt 00:00:20]} 72. Rg1
{[%clk 00:01:12]} {[%emt 00:00:49]} Re8 {[%clk 00:00:36]} {[%emt 00:00:51]} 73.
g7 {[%clk 00:01:24]} {[%emt 00:00:19]} Rg8 {[%clk 00:01:04]} {[%emt 00:00:42]}
74. Kh5 {[%clk 00:01:42]} Rd2 {[%clk 00:00:33]} {[%emt 00:00:35]} 75. Kg6
{[%clk 00:01:35]} {[%emt 00:00:40]} Rc8 {[%clk 00:00:36]} {[%emt 00:00:52]} 76.
Re1+ {[%clk 00:01:29]} {[%emt 00:00:13]} Kd4 {[%clk 00:00:40]} {[%emt
00:00:18]} 77. Rf1 {[%clk 00:01:39]} {[%emt 00:00:41]} Kc3 {[%clk 00:00:32]}
{[%emt 00:00:16]} 78. Rf8 {[%clk 00:01:07]} {[%emt 00:01:05]} Rdd8 {[%clk
00:00:32]} {[%emt 00:00:28]} 79. Rc5+ {[%clk 00:01:18]} {[%emt 00:00:18]} Rxc5
{[%clk 00:00:41]} {[%emt 00:00:23]} 80. Rxd8 {[%clk 00:01:47]} {[%emt
00:00:05]} Rc6+ {[%clk 00:00:44]} {[%emt 00:00:23]} 81. Kf5 {[%clk 00:02:09]}
{[%emt 00:00:39]} Rc5+ {[%clk 00:00:51]} {[%emt 00:00:09]} 82. Ke4 {[%emt
00:00:17]} 1-0

[Event "Chess Festival Groningen 2023 | A"]
[Site "Groningen, Netherlands"]
[Date "2023.12.21"]
[Round "1.8"]
[White "Jacobs, Florian"]
[Black "Beerdsen, Thomas"]
[Result "0-1"]
[TimeControl "90min/40moves + 30min + 30sec/move"]
[WhiteElo "2218"]
[BlackElo "2511"]

1. d4 {[%clk 01:30:56]} {[%emt 00:00:31]} d5 {[%clk 01:30:35]} {[%emt
00:00:13]} 2. c4 {[%clk 01:31:19]} c6 {[%clk 01:30:26]} {[%emt 00:00:31]} 3.
Nf3 {[%clk 01:31:44]} {[%emt 00:00:37]} Nf6 {[%clk 01:30:32]} 4. e3 {[%clk
01:32:08]} {[%emt 00:00:05]} Bf5 {[%clk 01:30:34]} {[%emt 00:01:00]} 5. Nc3
{[%clk 01:32:27]} e6 {[%clk 01:30:51]} {[%emt 00:00:13]} 6. Nh4 {[%clk
01:32:47]} Bg6 {[%clk 01:31:10]} 7. Be2 {[%clk 01:32:53]} {[%emt 00:00:16]}
Nbd7 {[%clk 01:28:27]} {[%emt 00:03:13]} 8. g3 {[%clk 01:32:14]} {[%emt
00:01:05]} Be7 {[%clk 01:25:40]} {[%emt 00:03:41]} 9. Qb3 {[%clk 01:30:47]}
{[%emt 00:01:38]} Qc7 {[%clk 01:23:13]} {[%emt 00:02:57]} 10. Bd2 {[%clk
01:30:27]} {[%emt 00:00:50]} Ne4 {[%clk 01:20:30]} {[%emt 00:03:16]} 11. Nxe4
{[%clk 01:30:13]} {[%emt 00:00:40]} Bxe4 {[%clk 01:20:46]} {[%emt 00:00:16]} 12.
f3 {[%clk 01:28:07]} {[%emt 00:02:37]} dxc4 {[%clk 01:17:48]} {[%emt 00:03:45]}
13. Bxc4 {[%clk 01:28:30]} Bd5 {[%clk 01:16:25]} {[%emt 00:01:43]} 14. Bxd5
{[%clk 01:21:59]} {[%emt 00:07:02]} exd5 {[%clk 01:09:51]} {[%emt 00:06:59]} 15.
Nf5 {[%clk 01:08:20]} {[%emt 00:14:13]} Bf8 {[%clk 01:07:53]} {[%emt 00:02:24]}
16. e4 {[%clk 00:54:14]} {[%emt 00:14:44]} g6 {[%clk 01:06:46]} {[%emt
00:01:31]} 17. Ne3 {[%clk 00:48:18]} {[%emt 00:06:24]} dxe4 {[%clk 01:06:00]}
{[%emt 00:01:18]} 18. fxe4 {[%clk 00:48:16]} {[%emt 00:00:32]} Bg7 {[%clk
00:56:35]} {[%emt 00:09:53]} 19. e5 {[%clk 00:46:03]} {[%emt 00:02:44]} O-O
{[%clk 00:54:32]} {[%emt 00:02:31]} 20. O-O {[%clk 00:45:52]} {[%emt 00:00:54]}
a5 {[%clk 00:47:15]} {[%emt 00:07:35]} 21. Nc4 {[%clk 00:33:28]} {[%emt
00:12:55]} a4 {[%clk 00:44:35]} {[%emt 00:03:09]} 22. Qc3 {[%clk 00:20:22]}
{[%emt 00:13:35]} c5 {[%clk 00:42:16]} {[%emt 00:02:49]} 23. Bf4 {[%clk
00:14:38]} {[%emt 00:06:17]} cxd4 {[%clk 00:40:55]} {[%emt 00:01:47]} 24. Qxd4
{[%clk 00:15:00]} {[%emt 00:00:37]} Rad8 {[%clk 00:29:09]} {[%emt 00:12:16]} 25.
Rac1 {[%clk 00:09:58]} {[%emt 00:05:03]} b5 {[%clk 00:27:04]} {[%emt 00:03:11]}
26. Nd6 {[%clk 00:08:32]} {[%emt 00:01:20]} Qb8 {[%clk 00:27:25]} {[%emt
00:00:14]} 27. Rcd1 {[%clk 00:06:46]} {[%emt 00:02:12]} Qa8 {[%clk 00:18:36]}
{[%emt 00:09:21]} 28. Qe3 {[%clk 00:05:48]} {[%emt 00:01:24]} h6 {[%clk
00:14:21]} {[%emt 00:04:46]} 29. e6 {[%clk 00:05:15]} {[%emt 00:01:03]} fxe6
{[%clk 00:14:40]} {[%emt 00:00:42]} 30. Bxh6 {[%clk 00:04:22]} {[%emt
00:00:51]} Bxh6 {[%clk 00:12:52]} {[%emt 00:02:20]} 31. Qxh6 {[%clk 00:04:46]}
{[%emt 00:00:09]} Ne5 {[%clk 00:13:06]} {[%emt 00:00:11]} 32. Qg5 {[%clk
00:02:23]} {[%emt 00:03:07]} Qa7+ {[%clk 00:07:59]} {[%emt 00:05:24]} 33. Kg2
{[%clk 00:02:19]} {[%emt 00:00:34]} Rxf1 {[%clk 00:07:35]} {[%emt 00:00:53]} 34.
Rxf1 {[%clk 00:01:12]} {[%emt 00:01:40]} Rxd6 {[%clk 00:07:53]} {[%emt
00:00:12]} 35. Qxe5 {[%clk 00:01:34]} {[%emt 00:00:09]} Rd2+ {[%clk 00:08:15]}
{[%emt 00:00:08]} 36. Kh3 {[%clk 00:01:20]} {[%emt 00:01:18]} Qh7+ {[%clk
00:08:01]} {[%emt 00:00:06]} 37. Kg4 {[%clk 00:01:49]} Qh5+ {[%clk 00:08:08]}
{[%emt 00:00:46]} 38. Qxh5 {[%clk 00:02:11]} gxh5+ {[%clk 00:08:34]} 39. Kxh5
{[%clk 00:02:22]} {[%emt 00:00:11]} Rxh2+ {[%clk 00:08:55]} {[%emt 00:00:09]}
40. Kg6 {[%clk 00:02:28]} {[%emt 00:00:25]} Rxb2 {[%clk 00:07:13]} {[%emt
00:02:08]} 41. Rc1 {[%clk 00:25:53]} {[%emt 00:07:42]} Kf8 {[%clk 00:36:53]}
{[%emt 00:00:14]} 42. Kf6 {[%clk 00:26:18]} {[%emt 00:00:32]} Rf2+ {[%clk
00:35:30]} {[%emt 00:02:05]} 43. Kxe6 {[%clk 00:26:09]} {[%emt 00:00:05]} Rxa2
{[%clk 00:35:54]} {[%emt 00:00:04]} 44. Rb1 {[%clk 00:26:32]} {[%emt 00:00:09]}
a3 {[%clk 00:29:55]} {[%emt 00:06:23]} 45. Rxb5 {[%clk 00:26:47]} {[%emt
00:00:15]} Ra1 {[%clk 00:30:10]} {[%emt 00:00:41]} 46. Re5 {[%clk 00:19:10]}
{[%emt 00:07:42]} a2 {[%clk 00:25:19]} {[%emt 00:05:20]} 47. Re2 {[%clk
00:19:34]} {[%emt 00:00:42]} Kg7 {[%clk 00:25:41]} 48. Ke5 {[%clk 00:19:06]}
{[%emt 00:00:30]} Kg6 {[%clk 00:26:05]} {[%emt 00:00:38]} 49. Ke4 {[%clk
00:19:07]} {[%emt 00:00:09]} Kg5 {[%clk 00:25:59]} {[%emt 00:00:25]} 50. Ke3
{[%clk 00:18:38]} {[%emt 00:01:02]} Kf5 {[%clk 00:23:41]} {[%emt 00:02:45]} 51.
Rf2+ {[%clk 00:18:28]} {[%emt 00:00:49]} Kg4 {[%clk 00:23:44]} {[%emt
00:00:17]} 52. Re2 {[%clk 00:18:53]} {[%emt 00:00:42]} Kxg3 {[%clk 00:23:55]}
{[%emt 00:00:14]} 53. Ke4 {[%clk 00:19:19]} Kg4 {[%clk 00:24:03]} 54. Ke3
{[%clk 00:19:43]} {[%emt 00:00:10]} Kf5 {[%clk 00:24:18]} {[%emt 00:00:15]} 55.
Rf2+ {[%clk 00:20:03]} {[%emt 00:00:05]} Ke5 {[%clk 00:24:18]} {[%emt
00:00:27]} 56. Kf3 {[%clk 00:20:28]} {[%emt 00:00:29]} Kd4 {[%clk 00:24:04]}
{[%emt 00:00:19]} 57. Kg2 {[%clk 00:20:41]} {[%emt 00:00:34]} Rg1+ {[%emt
00:01:04]} 0-1

[Event "Chess Festival Groningen 2023 | A"]
[Site "Groningen, Netherlands"]
[Date "2023.12.21"]
[Round "1.9"]
[White "Kovchan, Alexander"]
[Black "Labruyere, Roger"]
[Result "1/2-1/2"]
[TimeControl "90min/40moves + 30min + 30sec/move"]
[WhiteElo "2491"]
[BlackElo "2208"]

1. e4 {[%clk 01:30:53]} {[%emt 00:00:09]} c5 {[%clk 01:30:57]} {[%emt
00:00:08]} 2. Nf3 {[%clk 01:31:15]} {[%emt 00:00:04]} d6 {[%clk 01:31:16]}
{[%emt 00:00:07]} 3. d4 {[%clk 01:31:38]} {[%emt 00:00:10]} cxd4 {[%clk
01:31:43]} {[%emt 00:00:05]} 4. Nxd4 {[%clk 01:32:02]} {[%emt 00:00:10]} Nf6
{[%clk 01:32:07]} 5. Nc3 {[%clk 01:32:24]} {[%emt 00:00:18]} a6 {[%clk
01:32:33]} 6. g3 {[%clk 01:32:23]} {[%emt 00:00:22]} e5 {[%clk 01:32:58]}
{[%emt 00:00:41]} 7. Nde2 {[%clk 01:32:45]} Be7 {[%clk 01:33:00]} {[%emt
00:00:14]} 8. Bg2 {[%clk 01:33:06]} O-O {[%clk 01:33:23]} {[%emt 00:00:15]} 9.
O-O {[%clk 01:33:27]} {[%emt 00:00:19]} b5 {[%clk 01:31:32]} {[%emt 00:01:58]}
10. a4 {[%clk 01:26:11]} {[%emt 00:07:47]} Bb7 {[%clk 01:28:41]} {[%emt
00:03:33]} 11. Nd5 {[%clk 01:24:04]} {[%emt 00:02:47]} Nxd5 {[%clk 01:28:52]}
{[%emt 00:00:09]} 12. exd5 {[%clk 01:24:22]} {[%emt 00:00:05]} Nd7 {[%clk
01:28:56]} {[%emt 00:00:21]} 13. Bd2 {[%clk 01:20:28]} {[%emt 00:04:35]} Nc5
{[%clk 01:27:01]} {[%emt 00:02:53]} 14. a5 {[%clk 01:19:08]} {[%emt 00:01:12]}
f5 {[%clk 01:24:10]} {[%emt 00:03:19]} 15. Bb4 {[%clk 01:16:48]} {[%emt
00:02:50]} Rc8 {[%clk 01:22:53]} {[%emt 00:01:51]} 16. Qd2 {[%clk 01:14:28]}
{[%emt 00:03:08]} Bf6 {[%clk 01:18:39]} {[%emt 00:04:21]} 17. Nc3 {[%clk
01:10:04]} {[%emt 00:04:54]} g6 {[%clk 01:15:35]} {[%emt 00:03:35]} 18. Rae1
{[%clk 01:08:59]} {[%emt 00:02:01]} Qd7 {[%clk 01:14:33]} {[%emt 00:01:05]} 19.
Kh1 {[%clk 00:58:08]} {[%emt 00:11:20]} Qg7 {[%clk 01:09:28]} {[%emt 00:05:35]}
20. Nd1 {[%clk 00:48:45]} {[%emt 00:09:53]} h5 {[%clk 01:03:59]} {[%emt
00:06:01]} 21. f3 {[%clk 00:45:35]} {[%emt 00:03:38]} Qf7 {[%clk 00:59:40]}
{[%emt 00:04:52]} 22. Nc3 {[%clk 00:45:07]} {[%emt 00:00:54]} Qh7 {[%clk
00:52:04]} {[%emt 00:08:07]} 23. h3 {[%clk 00:42:41]} {[%emt 00:02:57]} Kh8
{[%clk 00:50:29]} {[%emt 00:02:32]} 24. Kg1 {[%clk 00:41:22]} {[%emt 00:01:59]}
Rg8 {[%clk 00:46:11]} {[%emt 00:04:09]} 25. Qf2 {[%clk 00:36:51]} {[%emt
00:05:00]} Qg7 {[%clk 00:42:46]} {[%emt 00:03:56]} 26. Rd1 {[%clk 00:36:51]}
{[%emt 00:00:49]} Qe7 {[%clk 00:36:53]} {[%emt 00:06:05]} 27. f4 {[%clk
00:36:29]} {[%emt 00:00:55]} Nd7 {[%clk 00:34:48]} {[%emt 00:02:32]} 28. Na2
{[%clk 00:27:06]} {[%emt 00:09:53]} e4 {[%clk 00:29:34]} {[%emt 00:05:43]} 29.
h4 {[%clk 00:26:40]} {[%emt 00:00:56]} Rc7 {[%clk 00:27:56]} {[%emt 00:02:07]}
30. Rfe1 {[%clk 00:24:55]} {[%emt 00:02:15]} Rgc8 {[%clk 00:28:22]} {[%emt
00:00:38]} 31. Re2 {[%clk 00:24:38]} {[%emt 00:00:14]} Bg7 {[%clk 00:28:22]}
{[%emt 00:00:40]} 32. Ba3 {[%clk 00:24:42]} {[%emt 00:00:14]} Nf6 {[%clk
00:28:17]} {[%emt 00:00:35]} 33. Nb4 {[%clk 00:24:59]} {[%emt 00:00:24]} Qf7
{[%clk 00:22:21]} {[%emt 00:06:16]} 34. Red2 {[%clk 00:20:00]} {[%emt
00:05:33]} Rc5 {[%clk 00:20:41]} {[%emt 00:02:06]} 35. c3 {[%clk 00:19:16]}
{[%emt 00:01:13]} Nxd5 {[%clk 00:14:03]} {[%emt 00:07:07]} 36. Nxd5 {[%clk
00:18:24]} {[%emt 00:02:00]} Rxd5 {[%clk 00:14:31]} 37. Bxd6 {[%clk 00:17:59]}
{[%emt 00:00:32]} Rxd2 {[%clk 00:13:51]} {[%emt 00:01:07]} 38. Rxd2 {[%clk
00:17:48]} {[%emt 00:00:31]} Qe6 {[%clk 00:05:21]} {[%emt 00:09:00]} 39. Bc5
{[%clk 00:15:24]} {[%emt 00:02:54]} Kh7 {[%clk 00:04:40]} {[%emt 00:01:13]} 40.
Qe3 {[%clk 00:12:40]} {[%emt 00:03:33]} Qc6 {[%clk 00:02:26]} {[%emt 00:02:22]}
1/2-1/2

[Event "Chess Festival Groningen 2023 | A"]
[Site "Groningen, Netherlands"]
[Date "2023.12.21"]
[Round "1.10"]
[White "Albers, Sasa"]
[Black "Nevednichy, Vladislav"]
[Result "0-1"]
[TimeControl "90min/40moves + 30min + 30sec/move"]
[WhiteElo "2192"]
[BlackElo "2452"]

1. e4 {[%clk 01:30:51]} c5 {[%clk 01:30:52]} {[%emt 00:00:30]} 2. Nf3 {[%clk
01:31:17]} d6 {[%clk 01:31:01]} {[%emt 00:00:03]} 3. d4 {[%clk 01:31:41]}
{[%emt 00:00:07]} cxd4 {[%clk 01:31:26]} {[%emt 00:00:06]} 4. Nxd4 {[%clk
01:32:06]} {[%emt 00:00:07]} Nf6 {[%clk 01:31:53]} {[%emt 00:00:18]} 5. Nc3
{[%clk 01:32:27]} {[%emt 00:00:03]} Nc6 {[%clk 01:32:19]} 6. Bg5 {[%clk
01:32:52]} e6 {[%clk 01:32:30]} {[%emt 00:00:12]} 7. Qd2 {[%clk 01:32:50]}
{[%emt 00:00:34]} a6 {[%clk 01:32:55]} {[%emt 00:00:08]} 8. O-O-O {[%clk
01:33:11]} {[%emt 00:00:09]} Bd7 {[%clk 01:33:18]} {[%emt 00:00:05]} 9. Kb1
{[%clk 01:30:39]} {[%emt 00:03:00]} Be7 {[%clk 01:32:10]} {[%emt 00:01:37]} 10.
f3 {[%clk 01:24:43]} {[%emt 00:06:26]} Nxd4 {[%clk 01:29:27]} {[%emt 00:03:15]}
11. Qxd4 {[%clk 01:24:59]} {[%emt 00:00:17]} b5 {[%clk 01:29:53]} {[%emt
00:00:07]} 12. Be3 {[%clk 01:21:11]} {[%emt 00:04:10]} Bc6 {[%clk 01:19:28]}
{[%emt 00:10:55]} 13. Qd2 {[%clk 01:18:33]} {[%emt 00:03:08]} d5 {[%clk
01:06:05]} {[%emt 00:13:53]} 14. e5 {[%clk 01:15:15]} {[%emt 00:03:51]} Nd7
{[%clk 01:06:27]} {[%emt 00:00:08]} 15. f4 {[%clk 01:14:51]} {[%emt 00:01:01]}
Nc5 {[%clk 00:57:21]} {[%emt 00:09:24]} 16. Ne2 {[%clk 01:14:41]} {[%emt
00:00:40]} O-O {[%clk 00:55:49]} {[%emt 00:02:03]} 17. Nd4 {[%clk 01:12:09]}
{[%emt 00:03:10]} Bd7 {[%clk 00:55:18]} {[%emt 00:00:55]} 18. g4 {[%clk
01:07:07]} {[%emt 00:05:28]} b4 {[%clk 00:38:12]} {[%emt 00:17:55]} 19. Bg2
{[%clk 00:58:27]} {[%emt 00:08:55]} Qc7 {[%clk 00:27:34]} {[%emt 00:11:13]} 20.
Rhf1 {[%clk 00:55:23]} {[%emt 00:03:28]} Bb5 {[%clk 00:21:16]} {[%emt
00:06:45]} 21. Rf3 {[%clk 00:48:45]} {[%emt 00:07:07]} Ne4 {[%clk 00:17:43]}
{[%emt 00:04:06]} 22. Qe1 {[%clk 00:47:45]} {[%emt 00:01:35]} Rfc8 {[%clk
00:17:56]} {[%emt 00:00:10]} 23. Rh3 {[%clk 00:46:53]} {[%emt 00:01:22]} Bd7
{[%clk 00:17:22]} {[%emt 00:01:05]} 24. Bc1 {[%clk 00:39:25]} {[%emt 00:07:56]}
Bc6 {[%clk 00:13:42]} {[%emt 00:04:12]} 25. g5 {[%clk 00:20:21]} {[%emt
00:19:33]} g6 {[%clk 00:11:57]} {[%emt 00:02:17]} 26. Rdd3 {[%clk 00:19:28]}
{[%emt 00:01:29]} Bf8 {[%clk 00:07:42]} {[%emt 00:04:39]} 27. Qh4 {[%clk
00:16:29]} {[%emt 00:03:24]} h6 {[%clk 00:08:09]} {[%emt 00:00:31]} 28. gxh6
{[%clk 00:16:52]} Kh7 {[%clk 00:08:20]} {[%emt 00:00:08]} 29. Qe1 {[%clk
00:13:06]} {[%emt 00:04:07]} a5 {[%clk 00:08:21]} {[%emt 00:00:33]} 30. Nxc6
{[%clk 00:08:56]} {[%emt 00:04:36]} Qxc6 {[%clk 00:08:47]} {[%emt 00:00:29]} 31.
Qe2 {[%clk 00:08:42]} {[%emt 00:00:24]} Bc5 {[%clk 00:06:14]} {[%emt 00:02:56]}
32. Be3 {[%clk 00:06:11]} {[%emt 00:03:02]} a4 {[%clk 00:05:14]} {[%emt
00:01:32]} 33. Bxc5 {[%clk 00:05:25]} {[%emt 00:01:14]} Nxc5 {[%clk 00:04:18]}
{[%emt 00:01:26]} 34. Rd1 {[%clk 00:05:55]} a3 {[%clk 00:03:33]} {[%emt
00:01:38]} 35. b3 {[%clk 00:05:42]} {[%emt 00:00:26]} Ne4 {[%clk 00:02:19]}
{[%emt 00:01:38]} 36. Bxe4 {[%clk 00:06:07]} {[%emt 00:00:15]} dxe4 {[%clk
00:02:47]} 37. Rc1 {[%clk 00:04:21]} {[%emt 00:02:07]} Qd5 {[%clk 00:01:42]}
{[%emt 00:01:36]} 38. Qe1 {[%clk 00:04:38]} {[%emt 00:00:13]} Qd4 {[%clk
00:01:47]} {[%emt 00:00:27]} 39. c3 {[%clk 00:05:07]} {[%emt 00:00:03]} bxc3
{[%clk 00:01:59]} {[%emt 00:00:15]} 40. Rhxc3 {[%clk 00:00:39]} {[%emt
00:04:59]} Rxc3 {[%clk 00:02:16]} {[%emt 00:00:11]} 41. Qxc3 {[%clk 00:01:01]}
{[%emt 00:00:33]} Qf2 {[%clk 00:02:41]} {[%emt 00:00:08]} 42. b4 {[%clk
00:28:53]} {[%emt 00:02:10]} e3 {[%clk 00:31:55]} {[%emt 00:01:18]} 43. b5
{[%clk 00:25:16]} {[%emt 00:04:04]} Rc8 {[%clk 00:31:40]} {[%emt 00:00:46]} 0-1